[Event "Live Chess"]
[Site "Chess.com"]
[Date "2024.06.02"]
[Round "-"]
[White "McFim"]
[Black "yarek"]
[Result "1-0"]
[WhiteElo "1755"]
[BlackElo "1746"]
[TimeControl "300"]
[EndTime "6:15:14 PDT"]
[Termination "McFim won on time"]

1. e4 {[%clk 0:04:57.6]} 1... g6 {[%clk 0:04:59.2]} 2. d4 {[%clk 0:04:55.9]}
2... Bg7 {[%clk 0:04:58.7]} 3. Nf3 {[%clk 0:04:54.6]} 3... c6 {[%clk 0:04:58.3]}
4. Bd3 {[%clk 0:04:53.4]} 4... d5 {[%clk 0:04:57.8]} 5. e5 {[%clk 0:04:52.2]}
5... Bg4 {[%clk 0:04:55.7]} 6. h3 {[%clk 0:04:50.7]} 6... Bxf3 {[%clk
0:04:54.5]} 7. Qxf3 {[%clk 0:04:49.6]} 7... e6 {[%clk 0:04:54]} 8. O-O {[%clk
0:04:48.1]} 8... Nd7 {[%clk 0:04:52.8]} 9. c3 {[%clk 0:04:46.1]} 9... c5 {[%clk
0:04:51.6]} 10. Nd2 {[%clk 0:04:43.4]} 10... Ne7 {[%clk 0:04:43.8]} 11. Qe2
{[%clk 0:04:41.9]} 11... O-O {[%clk 0:04:40]} 12. Nf3 {[%clk 0:04:40.5]} 12...
Rc8 {[%clk 0:04:35]} 13. Bg5 {[%clk 0:04:38.3]} 13... Re8 {[%clk 0:04:25.5]} 14.
Rac1 {[%clk 0:04:33.1]} 14... Qb6 {[%clk 0:04:24.5]} 15. g4 {[%clk 0:04:07.2]}
15... cxd4 {[%clk 0:04:14.9]} 16. cxd4 {[%clk 0:04:05.4]} 16... Nc6 {[%clk
0:04:11.7]} 17. Be3 {[%clk 0:03:59.1]} 17... a6 {[%clk 0:04:02.1]} 18. a3 {[%clk
0:03:56.6]} 18... Na5 {[%clk 0:03:57.1]} 19. Rxc8 {[%clk 0:03:51.9]} 19... Rxc8
{[%clk 0:03:55]} 20. Rc1 {[%clk 0:03:51]} 20... Rxc1+ {[%clk 0:03:52.2]} 21.
Bxc1 {[%clk 0:03:49.2]} 21... Nb3 {[%clk 0:03:45.2]} 22. Be3 {[%clk 0:03:44]}
22... Qa5 {[%clk 0:03:32.8]} 23. Qc2 {[%clk 0:03:36.3]} 23... Qb6 {[%clk
0:03:19]} 24. h4 {[%clk 0:03:24.6]} 24... Bf8 {[%clk 0:03:10.2]} 25. h5 {[%clk
0:03:16.6]} 25... gxh5 {[%clk 0:03:00.7]} 26. gxh5 {[%clk 0:03:04.7]} 26... f5
{[%clk 0:02:59.8]} 27. exf6 {[%clk 0:03:02.5]} 27... Nxf6 {[%clk 0:02:58]} 28.
h6 {[%clk 0:02:52.5]} 28... Na5 {[%clk 0:02:45]} 29. Bg5 {[%clk 0:02:35.5]}
29... Qd8 {[%clk 0:02:34.9]} 30. Bxh7+ {[%clk 0:02:19.5]} 30... Kh8 {[%clk
0:02:31]} 31. Bg6 {[%clk 0:02:04.2]} 31... Nc4 {[%clk 0:02:23.4]} 32. Ne5 {[%clk
0:01:57.3]} 32... Nd6 {[%clk 0:01:43.2]} 33. Nf7+ {[%clk 0:01:28.3]} 33... Nxf7
{[%clk 0:01:41]} 34. Bxf7 {[%clk 0:01:28.2]} 34... Be7 {[%clk 0:01:25.3]} 35.
Qg6 {[%clk 0:01:23.4]} 35... Qf8 {[%clk 0:00:10.7]} 36. Bxf6+ {[%clk 0:01:18.8]}
36... Bxf6 {[%clk 0:00:10.2]} 37. Qxf6+ {[%clk 0:01:17.8]} 37... Kh7 {[%clk
0:00:09.9]} 38. Bg6+ {[%clk 0:01:14.7]} 38... Kg8 {[%clk 0:00:07.6]} 39. Qxe6+
{[%clk 0:01:09.6]} 39... Kh8 {[%clk 0:00:04.1]} 40. Qe5+ {[%clk 0:01:08.3]}
40... Kg8 {[%clk 0:00:02.2]} 41. Qxd5+ {[%clk 0:01:06.1]} 41... Kh8 {[%clk
0:00:00.9]} 42. Qe5+ {[%clk 0:01:05]} 1-0

[Event "Live Chess"]
[Site "Chess.com"]
[Date "2024.06.02"]
[Round "-"]
[White "PETROMICH1967"]
[Black "missedJariChance"]
[Result "0-1"]
[WhiteElo "1344"]
[BlackElo "1395"]
[TimeControl "300"]
[EndTime "6:15:14 PDT"]
[Termination "missedJariChance won by resignation"]

1. e4 {[%clk 0:04:54]} 1... c5 {[%clk 0:04:58.5]} 2. Nf3 {[%clk 0:04:50.4]} 2...
e6 {[%clk 0:04:56.9]} 3. b4 {[%clk 0:04:49.6]} 3... b6 {[%clk 0:04:51.5]} 4.
bxc5 {[%clk 0:04:45.9]} 4... bxc5 {[%clk 0:04:50.1]} 5. d4 {[%clk 0:04:45.3]}
5... cxd4 {[%clk 0:04:48.3]} 6. Nxd4 {[%clk 0:04:43.5]} 6... Bb4+ {[%clk
0:04:33.3]} 7. c3 {[%clk 0:04:41]} 7... Be7 {[%clk 0:04:30.3]} 8. Bb5 {[%clk
0:04:38.7]} 8... Nf6 {[%clk 0:04:27.8]} 9. Nd2 {[%clk 0:04:28.5]} 9... Qc7
{[%clk 0:04:24]} 10. Bb2 {[%clk 0:04:23.9]} 10... O-O {[%clk 0:04:19.9]} 11. O-O
{[%clk 0:04:16.5]} 11... a6 {[%clk 0:04:18.3]} 12. Bd3 {[%clk 0:04:12.8]} 12...
Bb7 {[%clk 0:04:15]} 13. f3 {[%clk 0:04:01.8]} 13... Nc6 {[%clk 0:04:09.5]} 14.
Ne2 {[%clk 0:03:52]} 14... Ne5 {[%clk 0:03:59.5]} 15. Bc2 {[%clk 0:03:48.6]}
15... Qb6+ {[%clk 0:03:48.4]} 16. Nd4 {[%clk 0:03:32]} 16... Qxb2 {[%clk
0:03:27.1]} 17. Rb1 {[%clk 0:03:26.8]} 17... Qxc3 {[%clk 0:03:25.6]} 18. Nxe6
{[%clk 0:03:16.8]} 18... dxe6 {[%clk 0:03:08.8]} 19. Rxb7 {[%clk 0:03:15.9]}
19... Bc5+ {[%clk 0:02:59.4]} 20. Kh1 {[%clk 0:03:12.1]} 20... Rfd8 {[%clk
0:02:51.5]} 21. Bb3 {[%clk 0:02:45.3]} 21... Qxd2 {[%clk 0:02:45.2]} 22. Qb1
{[%clk 0:02:43.4]} 22... h6 {[%clk 0:02:33.2]} 0-1

[Event "Live Chess"]
[Site "Chess.com"]
[Date "2024.06.02"]
[Round "-"]
[White "wadsy27"]
[Black "grillage"]
[Result "1-0"]
[WhiteElo "2581"]
[BlackElo "1863"]
[TimeControl "300"]
[EndTime "6:15:31 PDT"]
[Termination "wadsy27 won by resignation"]

1. d4 {[%clk 0:04:58.3]} 1... e6 {[%clk 0:04:58.6]} 2. e4 {[%clk 0:04:56]} 2...
d5 {[%clk 0:04:56.7]} 3. exd5 {[%clk 0:04:55.6]} 3... exd5 {[%clk 0:04:55.4]} 4.
Nf3 {[%clk 0:04:55.5]} 4... Bd6 {[%clk 0:04:51.1]} 5. Bd3 {[%clk 0:04:54.8]}
5... Ne7 {[%clk 0:04:48.3]} 6. O-O {[%clk 0:04:49.4]} 6... Bf5 {[%clk
0:04:47.1]} 7. Re1 {[%clk 0:04:47.9]} 7... Bxd3 {[%clk 0:04:45.5]} 8. Qxd3
{[%clk 0:04:47.8]} 8... O-O {[%clk 0:04:42.7]} 9. Nc3 {[%clk 0:04:46.8]} 9... c6
{[%clk 0:04:35.4]} 10. Ne2 {[%clk 0:04:45.5]} 10... Nd7 {[%clk 0:04:33.8]} 11.
Bf4 {[%clk 0:04:34.1]} 11... Bxf4 {[%clk 0:04:32.1]} 12. Nxf4 {[%clk 0:04:34]}
12... Ng6 {[%clk 0:04:31.1]} 13. Nxg6 {[%clk 0:04:29.6]} 13... hxg6 {[%clk
0:04:29.8]} 14. Re3 {[%clk 0:04:25.8]} 14... Re8 {[%clk 0:04:27.3]} 15. Rae1
{[%clk 0:04:23.1]} 15... Rxe3 {[%clk 0:04:26.4]} 16. Qxe3 {[%clk 0:04:20.6]}
16... Kf8 {[%clk 0:04:21.7]} 17. Ng5 {[%clk 0:04:12.7]} 17... Nf6 {[%clk
0:04:17.6]} 18. Qf4 {[%clk 0:04:00]} 18... Qd7 {[%clk 0:04:02.3]} 19. c3 {[%clk
0:03:47]} 19... Re8 {[%clk 0:04:00.9]} 20. Re5 {[%clk 0:03:45.7]} 20... Rxe5
{[%clk 0:03:55.1]} 21. dxe5 {[%clk 0:03:43.5]} 21... Nh5 {[%clk 0:03:53.8]} 22.
Qe3 {[%clk 0:03:37.4]} 22... Qf5 {[%clk 0:03:43.7]} 23. g3 {[%clk 0:03:30.7]}
23... f6 {[%clk 0:03:11.4]} 24. exf6 {[%clk 0:03:10.6]} 24... gxf6 {[%clk
0:03:03.3]} 25. Ne6+ {[%clk 0:03:09.3]} 25... Kf7 {[%clk 0:02:56.5]} 26. Nd8+
{[%clk 0:03:03.6]} 26... Kf8 {[%clk 0:02:51]} 27. Nxb7 {[%clk 0:03:00.7]} 27...
Qb1+ {[%clk 0:02:37.6]} 28. Kg2 {[%clk 0:02:58.9]} 28... Qxb2 {[%clk 0:02:37.1]}
29. Qh6+ {[%clk 0:02:35.9]} 29... Kf7 {[%clk 0:02:25]} 30. Nd8+ {[%clk
0:02:32.1]} 30... Ke7 {[%clk 0:02:20.7]} 31. Nxc6+ {[%clk 0:02:30.5]} 31... Kd6
{[%clk 0:02:19.7]} 32. Nd4 {[%clk 0:02:26.8]} 32... Qxa2 {[%clk 0:02:08.3]} 33.
Qxg6 {[%clk 0:02:24.3]} 33... Qc4 {[%clk 0:01:53.4]} 34. Qxh5 {[%clk 0:02:22.1]}
34... Qxc3 {[%clk 0:01:52.8]} 35. Nb5+ {[%clk 0:02:18.8]} 1-0

[Event "Live Chess"]
[Site "Chess.com"]
[Date "2024.06.02"]
[Round "-"]
[White "McCarthyStone"]
[Black "BostonStrangler"]
[Result "1-0"]
[WhiteElo "2486"]
[BlackElo "2130"]
[TimeControl "300"]
[EndTime "6:15:40 PDT"]
[Termination "McCarthyStone won by resignation"]

1. b3 {[%clk 0:04:59.2]} 1... c5 {[%clk 0:04:56.7]} 2. Bb2 {[%clk 0:04:59.1]}
2... Nc6 {[%clk 0:04:56.1]} 3. e3 {[%clk 0:04:58.6]} 3... e5 {[%clk 0:04:52.3]}
4. d4 {[%clk 0:04:57.1]} 4... cxd4 {[%clk 0:04:48.7]} 5. exd4 {[%clk 0:04:57]}
5... Qa5+ {[%clk 0:04:46.4]} 6. Qd2 {[%clk 0:04:40.1]} 6... Qxd2+ {[%clk
0:04:36.4]} 7. Nxd2 {[%clk 0:04:40]} 7... exd4 {[%clk 0:04:35.4]} 8. Ngf3 {[%clk
0:04:38.1]} 8... Bc5 {[%clk 0:04:29.1]} 9. O-O-O {[%clk 0:04:37.2]} 9... Nge7
{[%clk 0:04:26.1]} 10. Ne4 {[%clk 0:04:36.2]} 10... Bb6 {[%clk 0:04:23.8]} 11.
Nd6+ {[%clk 0:04:33.8]} 11... Kf8 {[%clk 0:04:21.3]} 12. Bc4 {[%clk 0:04:30]}
12... d3 {[%clk 0:04:01.8]} 13. Nxf7 {[%clk 0:04:14.3]} 13... d5 {[%clk
0:03:48.3]} 14. Bxd5 {[%clk 0:04:00.9]} 14... Nxd5 {[%clk 0:03:35.4]} 15. Nxh8
{[%clk 0:03:57.7]} 15... Bf5 {[%clk 0:03:34.3]} 16. c4 {[%clk 0:03:36.6]} 16...
Ndb4 {[%clk 0:03:25.1]} 17. a3 {[%clk 0:03:32.8]} 17... d2+ {[%clk 0:03:14.6]}
18. Rxd2 {[%clk 0:03:26.7]} 18... Nd3+ {[%clk 0:03:11.8]} 19. Kd1 {[%clk
0:02:58.3]} 19... Nxf2+ {[%clk 0:03:06.2]} 20. Rxf2 {[%clk 0:02:55.9]} 20...
Bxf2 {[%clk 0:03:05.1]} 21. Rf1 {[%clk 0:02:50.9]} 21... Re8 {[%clk 0:02:53.4]}
22. Rxf2 {[%clk 0:02:45.7]} 1-0

[Event "Live Chess"]
[Site "Chess.com"]
[Date "2024.06.02"]
[Round "-"]
[White "PavelChernomordik"]
[Black "JohanKjeldahl"]
[Result "1-0"]
[WhiteElo "2511"]
[BlackElo "1791"]
[TimeControl "300"]
[EndTime "6:15:40 PDT"]
[Termination "PavelChernomordik won by resignation"]

1. e4 {[%clk 0:04:57.2]} 1... c5 {[%clk 0:04:57.5]} 2. Nc3 {[%clk 0:04:56]} 2...
e6 {[%clk 0:04:56.6]} 3. f4 {[%clk 0:04:54.7]} 3... Nc6 {[%clk 0:04:55.5]} 4.
Nf3 {[%clk 0:04:53.5]} 4... a6 {[%clk 0:04:54.5]} 5. g3 {[%clk 0:04:51.4]} 5...
b5 {[%clk 0:04:53.5]} 6. Qe2 {[%clk 0:04:48.4]} 6... Bb7 {[%clk 0:04:51.7]} 7.
Bg2 {[%clk 0:04:47.2]} 7... Nge7 {[%clk 0:04:45.7]} 8. d3 {[%clk 0:04:45.9]}
8... g6 {[%clk 0:04:44.7]} 9. e5 {[%clk 0:04:43.3]} 9... Nd5 {[%clk 0:04:35.1]}
10. Ne4 {[%clk 0:04:41.2]} 10... f5 {[%clk 0:04:30.6]} 11. exf6 {[%clk
0:04:37.4]} 11... Nxf6 {[%clk 0:04:28.4]} 12. Be3 {[%clk 0:04:34.2]} 12... Nxe4
{[%clk 0:04:23.6]} 13. dxe4 {[%clk 0:04:33]} 13... Rc8 {[%clk 0:04:22]} 14.
O-O-O {[%clk 0:04:29.7]} 14... Qa5 {[%clk 0:04:14.7]} 15. Kb1 {[%clk 0:04:27.9]}
15... Nb4 {[%clk 0:04:09.7]} 16. a3 {[%clk 0:04:25.4]} 16... Nc6 {[%clk
0:03:57.1]} 17. Qd3 {[%clk 0:04:17.3]} 17... Rd8 {[%clk 0:03:44.1]} 18. Bd2
{[%clk 0:04:16]} 18... Qc7 {[%clk 0:03:40.6]} 19. Bc3 {[%clk 0:04:14.4]} 19...
Rg8 {[%clk 0:03:35.5]} 20. f5 {[%clk 0:04:12.8]} 20... gxf5 {[%clk 0:03:31]} 21.
exf5 {[%clk 0:04:11.3]} 21... b4 {[%clk 0:03:28.6]} 22. Bf6 {[%clk 0:04:01.6]}
22... Be7 {[%clk 0:03:25.2]} 23. Bxe7 {[%clk 0:03:55.2]} 23... Kxe7 {[%clk
0:03:23.5]} 24. fxe6 {[%clk 0:03:51.9]} 24... dxe6 {[%clk 0:03:21.4]} 25. Qxh7+
{[%clk 0:03:46.7]} 1-0

[Event "Live Chess"]
[Site "Chess.com"]
[Date "2024.06.02"]
[Round "-"]
[White "Colm_Buckley"]
[Black "megabusyman"]
[Result "1-0"]
[WhiteElo "1882"]
[BlackElo "1856"]
[TimeControl "300"]
[EndTime "6:15:42 PDT"]
[Termination "Colm_Buckley won by checkmate"]

1. d4 {[%clk 0:04:57.2]} 1... d5 {[%clk 0:04:56.6]} 2. c4 {[%clk 0:04:56]} 2...
Nf6 {[%clk 0:04:55.3]} 3. Nc3 {[%clk 0:04:54.9]} 3... e6 {[%clk 0:04:53.9]} 4.
Nf3 {[%clk 0:04:53.9]} 4... Bb4 {[%clk 0:04:51.4]} 5. e3 {[%clk 0:04:49.5]} 5...
Ne4 {[%clk 0:04:38.5]} 6. Qc2 {[%clk 0:04:46.3]} 6... Bxc3+ {[%clk 0:04:34.8]}
7. bxc3 {[%clk 0:04:43.9]} 7... O-O {[%clk 0:04:23.5]} 8. Bd3 {[%clk 0:04:39]}
8... f5 {[%clk 0:04:21.1]} 9. O-O {[%clk 0:04:36.4]} 9... b6 {[%clk 0:04:19.6]}
10. cxd5 {[%clk 0:04:32.1]} 10... exd5 {[%clk 0:04:17]} 11. Ba3 {[%clk
0:04:28.7]} 11... Re8 {[%clk 0:04:15.6]} 12. Ne5 {[%clk 0:04:21.9]} 12... c5
{[%clk 0:03:52.4]} 13. f3 {[%clk 0:04:14.7]} 13... c4 {[%clk 0:03:48.1]} 14.
Bxe4 {[%clk 0:04:10.5]} 14... dxe4 {[%clk 0:03:34.5]} 15. fxe4 {[%clk
0:04:09.2]} 15... Qg5 {[%clk 0:03:20.9]} 16. Rae1 {[%clk 0:03:50.3]} 16... Bb7
{[%clk 0:03:07.5]} 17. exf5 {[%clk 0:03:35.1]} 17... Nc6 {[%clk 0:02:50.4]} 18.
Nf3 {[%clk 0:03:12.3]} 18... Qh6 {[%clk 0:02:32.3]} 19. e4 {[%clk 0:03:07.6]}
19... Na5 {[%clk 0:02:11]} 20. d5 {[%clk 0:02:58.4]} 20... Rad8 {[%clk
0:01:54.1]} 21. Nd4 {[%clk 0:02:53.6]} 21... Bc8 {[%clk 0:01:40.3]} 22. Ne6
{[%clk 0:02:45.7]} 22... Bxe6 {[%clk 0:01:37.8]} 23. fxe6 {[%clk 0:02:43.9]}
23... Nb7 {[%clk 0:01:34.7]} 24. Rf3 {[%clk 0:02:37.1]} 24... Nc5 {[%clk
0:01:22.4]} 25. Bxc5 {[%clk 0:02:33.4]} 25... bxc5 {[%clk 0:01:20.8]} 26. Ref1
{[%clk 0:02:32.1]} 26... Re7 {[%clk 0:01:06.8]} 27. Qf2 {[%clk 0:02:25]} 27...
g6 {[%clk 0:01:01.4]} 28. Qxc5 {[%clk 0:02:09.2]} 28... Rde8 {[%clk 0:00:51.8]}
29. Rf7 {[%clk 0:02:02.2]} 29... Qg5 {[%clk 0:00:42.9]} 30. Rxe7 {[%clk
0:01:48.5]} 30... Rxe7 {[%clk 0:00:41.7]} 31. Qc8+ {[%clk 0:01:43.2]} 31... Kg7
{[%clk 0:00:40.3]} 32. Qf8# {[%clk 0:01:41.1]} 1-0

[Event "Live Chess"]
[Site "Chess.com"]
[Date "2024.06.02"]
[Round "-"]
[White "KyryloPoluliakh"]
[Black "Step-S"]
[Result "1-0"]
[WhiteElo "1532"]
[BlackElo "1251"]
[TimeControl "300"]
[EndTime "6:16:13 PDT"]
[Termination "KyryloPoluliakh won by checkmate"]

1. c4 {[%clk 0:04:58.6]} 1... d6 {[%clk 0:04:57.4]} 2. Nc3 {[%clk 0:04:57.2]}
2... e6 {[%clk 0:04:53.7]} 3. g3 {[%clk 0:04:55.1]} 3... g6 {[%clk 0:04:52.4]}
4. Bg2 {[%clk 0:04:52.6]} 4... Bg7 {[%clk 0:04:50.6]} 5. d4 {[%clk 0:04:50.2]}
5... Nc6 {[%clk 0:04:43.9]} 6. e3 {[%clk 0:04:44.8]} 6... Bd7 {[%clk 0:04:40.1]}
7. Nge2 {[%clk 0:04:40]} 7... Nf6 {[%clk 0:04:32.8]} 8. a3 {[%clk 0:04:37.8]}
8... d5 {[%clk 0:04:30.2]} 9. cxd5 {[%clk 0:04:35.1]} 9... exd5 {[%clk 0:04:20]}
10. Nxd5 {[%clk 0:04:34.5]} 10... Nxd5 {[%clk 0:04:18.6]} 11. Bxd5 {[%clk
0:04:33.4]} 11... O-O {[%clk 0:04:16.6]} 12. O-O {[%clk 0:04:29.4]} 12... Rb8
{[%clk 0:04:09.7]} 13. b4 {[%clk 0:04:26.4]} 13... Ne7 {[%clk 0:04:08.1]} 14.
Bg2 {[%clk 0:04:22.9]} 14... Bc6 {[%clk 0:04:05.9]} 15. Bb2 {[%clk 0:04:11.8]}
15... Bxg2 {[%clk 0:04:02.3]} 16. Kxg2 {[%clk 0:04:07.4]} 16... b6 {[%clk
0:03:45.3]} 17. f3 {[%clk 0:03:59.2]} 17... Nd5 {[%clk 0:03:40.3]} 18. Qd2
{[%clk 0:03:55.1]} 18... Qd6 {[%clk 0:03:22.1]} 19. e4 {[%clk 0:03:45]} 19...
Ne7 {[%clk 0:03:08.4]} 20. d5 {[%clk 0:03:42.3]} 20... Bxb2 {[%clk 0:03:02.8]}
21. Qxb2 {[%clk 0:03:40.5]} 21... f6 {[%clk 0:02:49.4]} 22. Nd4 {[%clk
0:03:31.9]} 22... Rbe8 {[%clk 0:02:23.9]} 23. Ne6 {[%clk 0:03:28.4]} 23... Nc8
{[%clk 0:02:19.9]} 24. Nxf8 {[%clk 0:03:23.3]} 24... Rxf8 {[%clk 0:02:12]} 25.
Rac1 {[%clk 0:03:21.9]} 25... Rf7 {[%clk 0:02:06.9]} 26. Rc6 {[%clk 0:03:10.4]}
26... Qe7 {[%clk 0:02:00.8]} 27. Rfc1 {[%clk 0:03:08.2]} 27... Qd8 {[%clk
0:01:53.1]} 28. Qc3 {[%clk 0:03:03]} 28... b5 {[%clk 0:01:25.8]} 29. Rxc7 {[%clk
0:02:59.2]} 29... Nd6 {[%clk 0:01:18.1]} 30. Rxf7 {[%clk 0:02:50.6]} 30... Kxf7
{[%clk 0:01:12.3]} 31. Qc7+ {[%clk 0:02:46.9]} 31... Qxc7 {[%clk 0:01:08]} 32.
Rxc7+ {[%clk 0:02:45.4]} 32... Ke8 {[%clk 0:01:05.6]} 33. Rxa7 {[%clk
0:02:41.9]} 33... h6 {[%clk 0:01:01.1]} 34. Ra6 {[%clk 0:02:38.9]} 34... Ke7
{[%clk 0:00:59.8]} 35. f4 {[%clk 0:02:36.6]} 35... Nxe4 {[%clk 0:00:57.9]} 36.
Kf3 {[%clk 0:02:34.7]} 36... Nc3 {[%clk 0:00:51.1]} 37. d6+ {[%clk 0:02:29.3]}
37... Kd7 {[%clk 0:00:48.2]} 38. Ke3 {[%clk 0:02:24.3]} 38... Nd5+ {[%clk
0:00:44.9]} 39. Kd4 {[%clk 0:02:22]} 39... Ke6 {[%clk 0:00:34]} 40. d7+ {[%clk
0:02:19.1]} 40... Kxd7 {[%clk 0:00:27]} 41. Kxd5 {[%clk 0:02:17.9]} 41... Ke7
{[%clk 0:00:25.4]} 42. g4 {[%clk 0:02:14.7]} 42... h5 {[%clk 0:00:20.9]} 43.
gxh5 {[%clk 0:02:11.3]} 43... gxh5 {[%clk 0:00:19.9]} 44. f5 {[%clk 0:02:10.5]}
44... Kf7 {[%clk 0:00:18]} 45. h4 {[%clk 0:02:09.2]} 45... Kg7 {[%clk
0:00:16.7]} 46. Ke6 {[%clk 0:02:05.5]} 46... Kh6 {[%clk 0:00:14.7]} 47. Kxf6
{[%clk 0:02:03]} 47... Kh7 {[%clk 0:00:13.3]} 48. Ra8 {[%clk 0:02:01.4]} 48...
Kh6 {[%clk 0:00:09.7]} 49. Rh8# {[%clk 0:02:00.6]} 1-0

[Event "Live Chess"]
[Site "Chess.com"]
[Date "2024.06.02"]
[Round "-"]
[White "booktrunk"]
[Black "Grace6363"]
[Result "1-0"]
[WhiteElo "1496"]
[BlackElo "1121"]
[TimeControl "300"]
[EndTime "6:16:20 PDT"]
[Termination "booktrunk won by resignation"]

1. d4 {[%clk 0:04:53.5]} 1... Nf6 {[%clk 0:04:58.7]} 2. Nc3 {[%clk 0:04:52.1]}
2... g6 {[%clk 0:04:58]} 3. Bf4 {[%clk 0:04:51]} 3... d6 {[%clk 0:04:56.7]} 4.
e4 {[%clk 0:04:45.1]} 4... Be6 {[%clk 0:04:55.4]} 5. Nf3 {[%clk 0:04:43.1]} 5...
Nc6 {[%clk 0:04:53.9]} 6. d5 {[%clk 0:04:40.8]} 6... Bg4 {[%clk 0:04:51.1]} 7.
dxc6 {[%clk 0:04:38.2]} 7... bxc6 {[%clk 0:04:50.1]} 8. h3 {[%clk 0:04:36.1]}
8... Bxf3 {[%clk 0:04:49.1]} 9. Qxf3 {[%clk 0:04:35.1]} 9... d5 {[%clk
0:04:48.4]} 10. exd5 {[%clk 0:04:33.1]} 10... Nxd5 {[%clk 0:04:47.8]} 11. Nxd5
{[%clk 0:04:29.9]} 11... Qxd5 {[%clk 0:04:47.3]} 12. Qxd5 {[%clk 0:04:27.8]}
12... cxd5 {[%clk 0:04:46.8]} 13. O-O-O {[%clk 0:04:26.1]} 13... Bg7 {[%clk
0:04:46.3]} 14. Bxc7 {[%clk 0:04:21.7]} 14... Rc8 {[%clk 0:04:44.6]} 15. Bb5+
{[%clk 0:04:18]} 15... Kf8 {[%clk 0:04:40.3]} 16. Ba5 {[%clk 0:04:13.5]} 16...
Rc5 {[%clk 0:04:38.3]} 17. a4 {[%clk 0:04:07.5]} 17... a6 {[%clk 0:04:35.4]} 18.
b4 {[%clk 0:03:48.1]} 18... Rxb5 {[%clk 0:03:56.6]} 19. axb5 {[%clk 0:03:43.3]}
19... axb5 {[%clk 0:03:56]} 20. Rxd5 {[%clk 0:03:41.6]} 20... Bf6 {[%clk
0:03:50.2]} 21. Rxb5 {[%clk 0:03:35.6]} 21... Kg7 {[%clk 0:03:49.2]} 22. Rd1
{[%clk 0:03:30.7]} 1-0

[Event "Live Chess"]
[Site "Chess.com"]
[Date "2024.06.02"]
[Round "-"]
[White "TheSmoulderingMaster"]
[Black "resipsa6"]
[Result "0-1"]
[WhiteElo "1756"]
[BlackElo "2021"]
[TimeControl "300"]
[EndTime "6:17:10 PDT"]
[Termination "resipsa6 won by resignation"]

1. e4 {[%clk 0:04:56.9]} 1... e5 {[%clk 0:04:58.9]} 2. Nf3 {[%clk 0:04:55.7]}
2... d6 {[%clk 0:04:57.2]} 3. d4 {[%clk 0:04:54]} 3... exd4 {[%clk 0:04:57.1]}
4. Nxd4 {[%clk 0:04:52.7]} 4... Nf6 {[%clk 0:04:57]} 5. Nc3 {[%clk 0:04:51.4]}
5... Nc6 {[%clk 0:04:56.4]} 6. Bg5 {[%clk 0:04:50]} 6... Nxd4 {[%clk 0:04:55.4]}
7. Qxd4 {[%clk 0:04:48.3]} 7... Be7 {[%clk 0:04:55.3]} 8. O-O-O {[%clk
0:04:46.5]} 8... h6 {[%clk 0:04:54.8]} 9. Bh4 {[%clk 0:04:45.1]} 9... Be6 {[%clk
0:04:53.3]} 10. Bc4 {[%clk 0:04:41.7]} 10... Bxc4 {[%clk 0:04:52.3]} 11. Qxc4
{[%clk 0:04:41]} 11... O-O {[%clk 0:04:49]} 12. f4 {[%clk 0:04:39.3]} 12... Nd7
{[%clk 0:04:46.1]} 13. Bg3 {[%clk 0:04:36.3]} 13... Nb6 {[%clk 0:04:41.4]} 14.
Qb3 {[%clk 0:04:32.8]} 14... Bh4 {[%clk 0:04:38.6]} 15. e5 {[%clk 0:04:29.9]}
15... Bxg3 {[%clk 0:04:33.5]} 16. hxg3 {[%clk 0:04:27.6]} 16... Qe7 {[%clk
0:04:05.8]} 17. Rde1 {[%clk 0:04:18]} 17... dxe5 {[%clk 0:04:03.2]} 18. Rxe5
{[%clk 0:04:16]} 18... Qf6 {[%clk 0:03:58.4]} 19. Ne4 {[%clk 0:04:14.1]} 19...
Qc6 {[%clk 0:03:54.2]} 20. Rf5 {[%clk 0:04:08]} 20... Qxe4 {[%clk 0:03:50.1]}
21. Re5 {[%clk 0:04:01]} 21... Qxg2 {[%clk 0:03:45.7]} 0-1

[Event "Live Chess"]
[Site "Chess.com"]
[Date "2024.06.02"]
[Round "-"]
[White "TJ-W"]
[Black "SavagePawn7"]
[Result "1-0"]
[WhiteElo "1574"]
[BlackElo "678"]
[TimeControl "300"]
[EndTime "6:17:32 PDT"]
[Termination "TJ-W won by resignation"]

1. e4 {[%clk 0:04:57.2]} 1... d5 {[%clk 0:04:58.5]} 2. exd5 {[%clk 0:04:54.8]}
2... Nf6 {[%clk 0:04:55.2]} 3. Nc3 {[%clk 0:04:53.7]} 3... Nxd5 {[%clk 0:04:53]}
4. Nxd5 {[%clk 0:04:51.4]} 4... Qxd5 {[%clk 0:04:51]} 5. d4 {[%clk 0:04:51.3]}
5... Nc6 {[%clk 0:04:48.5]} 6. Nf3 {[%clk 0:04:49]} 6... Nb4 {[%clk 0:04:46.3]}
7. a3 {[%clk 0:04:40.8]} 7... Qe4+ {[%clk 0:04:43.5]} 8. Be3 {[%clk 0:04:28.8]}
8... Nxc2+ {[%clk 0:04:39.2]} 9. Kd2 {[%clk 0:04:21.5]} 9... Nxa1 {[%clk
0:04:35.5]} 10. Qxa1 {[%clk 0:04:21.4]} 10... Bf5 {[%clk 0:04:24.9]} 11. Qc1
{[%clk 0:04:15.2]} 11... O-O-O {[%clk 0:04:17.9]} 12. Ng5 {[%clk 0:04:05.9]}
12... Qc6 {[%clk 0:03:48.4]} 13. Qxc6 {[%clk 0:03:59.4]} 13... bxc6 {[%clk
0:03:46.8]} 14. Nxf7 {[%clk 0:03:56.3]} 14... e6 {[%clk 0:03:37.9]} 15. Nxh8
{[%clk 0:03:50.4]} 15... Bd6 {[%clk 0:03:24.5]} 16. Nf7 {[%clk 0:03:45.4]} 16...
Rf8 {[%clk 0:03:18.8]} 17. Nxd6+ {[%clk 0:03:41.5]} 17... cxd6 {[%clk
0:03:16.8]} 18. d5 {[%clk 0:03:40.7]} 18... exd5 {[%clk 0:03:08]} 19. Bxa7
{[%clk 0:03:38.5]} 19... Kb7 {[%clk 0:02:55.5]} 20. Bd4 {[%clk 0:03:31.2]} 20...
g6 {[%clk 0:02:51.7]} 21. f3 {[%clk 0:03:27.5]} 21... Ra8 {[%clk 0:02:26.3]} 22.
Bd3 {[%clk 0:03:20.3]} 22... Be6 {[%clk 0:02:14.3]} 23. Re1 {[%clk 0:03:16.7]}
23... Bd7 {[%clk 0:02:11]} 24. Re7 {[%clk 0:02:52.9]} 24... Kc7 {[%clk
0:02:08.3]} 25. Bb6+ {[%clk 0:02:50.4]} 25... Kxb6 {[%clk 0:02:04.3]} 26. Rxd7
{[%clk 0:02:49.8]} 26... Ra4 {[%clk 0:01:48.4]} 27. Rxh7 {[%clk 0:02:43.9]}
27... c5 {[%clk 0:01:43.1]} 28. Rh6 {[%clk 0:02:38.6]} 28... c4 {[%clk
0:01:40.1]} 29. Bc2 {[%clk 0:02:30.5]} 29... Kc5 {[%clk 0:01:38.2]} 30. Bxa4
{[%clk 0:02:24.5]} 1-0